Workbook

Sheet Sheet1
C1: 390000
A2: Position | B2: Percentage | C2: Prize
A3: 1 | B3: 22 | C3: =($C$1*B3)/100 -> 85800
A4: 2 | B4: 13.595 | C4: =($C$1*B4)/100 -> 53020.5
A5: 3 | B5: 9.934 | C5: =($C$1*B5)/100 -> 38742.6
A6: 4 | B6: 7.376 | C6: =($C$1*B6)/100 -> 28766.4
A7: 5 | B7: 5.562 | C7: =($C$1*B7)/100 -> 21691.8
A8: 6 | B8: 4.257 | C8: =($C$1*B8)/100 -> 16602.3
A9: 7 | B9: 3.306 | C9: =($C$1*B9)/100 -> 12893.4
A10: 8 | B10: 2.604 | C10: =($C$1*B10)/100 -> 10155.6
A11: 9 | B11: 2.08 | C11: =($C$1*B11)/100 -> 8112
A12: 10 | B12: 1.684 | C12: =($C$1*B12)/100 -> 6567.6
A13: 11 | B13: 1.684 | C13: =($C$1*B13)/100 -> 6567.6
A14: 12 | B14: 1.684 | C14: =($C$1*B14)/100 -> 6567.6
A15: 13 | B15: 1.382 | C15: =($C$1*B15)/100 -> 5389.8
A16: 14 | B16: 1.382 | C16: =($C$1*B16)/100 -> 5389.8
A17: 15 | B17: 1.382 | C17: =($C$1*B17)/100 -> 5389.8
A18: 16 | B18: 1.15 | C18: =($C$1*B18)/100 -> 4485
A19: 17 | B19: 1.15 | C19: =($C$1*B19)/100 -> 4485
A20: 18 | B20: 1.15 | C20: =($C$1*B20)/100 -> 4485
A21: 19 | B21: 0.969 | C21: =($C$1*B21)/100 -> 3779.1
A22: 20 | B22: 0.969 | C22: =($C$1*B22)/100 -> 3779.1
A23: 21 | B23: 0.969 | C23: =($C$1*B23)/100 -> 3779.1
A24: 22 | B24: 0.827 | C24: =($C$1*B24)/100 -> 3225.3
A25: 23 | B25: 0.827 | C25: =($C$1*B25)/100 -> 3225.3
A26: 24 | B26: 0.827 | C26: =($C$1*B26)/100 -> 3225.3
A27: 25 | B27: 0.715 | C27: =($C$1*B27)/100 -> 2788.5
A28: 26 | B28: 0.715 | C28: =($C$1*B28)/100 -> 2788.5
A29: 27 | B29: 0.715 | C29: =($C$1*B29)/100 -> 2788.5
A30: 28 | B30: 0.626 | C30: =($C$1*B30)/100 -> 2441.4
A31: 29 | B31: 0.626 | C31: =($C$1*B31)/100 -> 2441.4
A32: 30 | B32: 0.626 | C32: =($C$1*B32)/100 -> 2441.4
A33: 31 | B33: 0.555 | C33: =($C$1*B33)/100 -> 2164.5
A34: 32 | B34: 0.555 | C34: =($C$1*B34)/100 -> 2164.5
A35: 33 | B35: 0.555 | C35: =($C$1*B35)/100 -> 2164.5
A36: 34 | B36: 0.498 | C36: =($C$1*B36)/100 -> 1942.2
A37: 35 | B37: 0.498 | C37: =($C$1*B37)/100 -> 1942.2
A38: 36 | B38: 0.498 | C38: =($C$1*B38)/100 -> 1942.2
A39: 37 | B39: 0.452 | C39: =($C$1*B39)/100 -> 1762.8
A40: 38 | B40: 0.452 | C40: =($C$1*B40)/100 -> 1762.8
A41: 39 | B41: 0.452 | C41: =($C$1*B41)/100 -> 1762.8
A42: 40 | B42: 0.452 | C42: =($C$1*B42)/100 -> 1762.8
A43: 41 | B43: 0.452 | C43: =($C$1*B43)/100 -> 1762.8
A44: 42 | B44: 0.452 | C44: =($C$1*B44)/100 -> 1762.8
A45: 43 | B45: 0.452 | C45: =($C$1*B45)/100 -> 1762.8
A46: 44 | B46: 0.452 | C46: =($C$1*B46)/100 -> 1762.8
A47: 45 | B47: 0.452 | C47: =($C$1*B47)/100 -> 1762.8
B49: =SUM(B3:B48) -> 100 | C49: =SUM(C3:C48) -> 390000
A85: 83
A86: 84
A87: 85
A88: 86
A89: 87
A90: 88
A91: 89
A92: 90
A93: 91
A94: 92
A95: 93
A96: 94
A97: 95
A98: 96
A99: 97
A100: 98
A101: 99
